[Event "FIDE World Rapid Chess Championship 2021"]
[White "Sjugirov, Sanan"]
[Black "Murzin, Volodar"]
[WhiteFideId "4189302"]
[BlackFideId "44155573"]
[WhiteElo "2634"]
[BlackElo "2523"]
[Result "1-0"]
[Round "06"]
[TimeControl "900+10"]
[Date "2021.12.27"]
[WhiteClock "0:00:39"]
[BlackClock "0:00:17"]

1. e4 {[%clk 0:15:00]}  c6 {[%clk 0:15:00]} 2. d4 {[%clk 0:15:32]}  d5 {[%clk 0:15:33]} 3. e5 {[%clk 0:15:32]}  Bf5 {[%clk 0:15:33]} 4. Nf3 {[%clk 0:15:32]}  e6 {[%clk 0:15:33]} 5. Be2 {[%clk 0:15:32]}  Ne7 {[%clk 0:15:33]} 6. c3 {[%clk 0:15:32]}  h6 {[%clk 0:15:50]} 7. Nbd2 {[%clk 0:15:48]}  Bh7 {[%clk 0:10:29]} 8. Nb3 {[%clk 0:15:53]}  Nd7 {[%clk 0:10:29]} 9. O-O {[%clk 0:15:17]}  Ng6 {[%clk 0:10:00]} 10. g3 {[%clk 0:12:37]}  Be7 {[%clk 0:10:05]} 11. h4 {[%clk 0:12:35]}  O-O {[%clk 0:10:05]} 12. h5 {[%clk 0:12:25]}  Nh8 {[%clk 0:09:38]} 13. Bd3 {[%clk 0:12:25]}  Bxd3 {[%clk 0:09:45]} 14. Qxd3 {[%clk 0:08:30]}  f6 {[%clk 0:09:45]} 15. Qe2 {[%clk 0:08:38]}  Qe8 {[%clk 0:08:35]} 16. exf6 {[%clk 0:05:29]}  Bxf6 {[%clk 0:07:13]} 17. Bf4 {[%clk 0:04:51]}  Qxh5 {[%clk 0:06:42]} 18. Qxe6+ {[%clk 0:04:51]}  Rf7 {[%clk 0:06:42]} 19. Kg2 {[%clk 0:04:28]}  Ng6 {[%clk 0:06:14]} 20. Be3 {[%clk 0:04:28]}  Ngf8 {[%clk 0:03:17]} 21. Qh3 {[%clk 0:02:04]}  Qg6 {[%clk 0:03:17]} 22. Rae1 {[%clk 0:02:04]}  a5 {[%clk 0:02:15]} 23. Bf4 {[%clk 0:02:07]}  a4 {[%clk 0:02:15]} 24. Nbd2 {[%clk 0:02:07]}  Qc2 {[%clk 0:02:16]} 25. Re2 {[%clk 0:00:26]}  a3 {[%clk 0:01:01]} 26. bxa3 {[%clk 0:00:26]}  Qxc3 {[%clk 0:01:01]} 27. Ne5 {[%clk 0:00:26]}  Bxe5 {[%clk 0:01:01]} 28. dxe5 {[%clk 0:00:26]}  Nc5 {[%clk 0:01:01]} 29. e6 {[%clk 0:00:40]}  Ncxe6 {[%clk 0:00:18]} 30. Rxe6 {[%clk 0:00:40]}  Rxf4 {[%clk 0:00:18]} 31. Re3 {[%clk 0:00:40]}  Rxf2+ {[%clk 0:00:18]} 32. Kxf2 {[%clk 0:00:40]}  Qxd2+ {[%clk 0:00:18]} 33. Re2 {[%clk 0:00:40]}  Qd3 {[%clk 0:00:18]} 34. Qg4 {[%clk 0:00:40]}  Nh7 {[%clk 0:00:24]} 35. Kg2 {[%clk 0:00:49]}  Ng5 {[%clk 0:00:24]} 36. Re7 {[%clk 0:00:49]}  Qxa3 {[%clk 0:00:24]} 37. Qd7 {[%clk 0:00:49]}  Qc3 {[%clk 0:00:24]} 38. Qxb7 {[%clk 0:00:39]}  Rxa2+ {[%clk 0:00:17]} 39. Kh1 {[%clk 0:00:39]}  Qd3 {[%clk 0:00:17]} 40. Rxg7+ {[%clk 0:00:39]} 1-0


[Site "http://www.Chess.com"]

[Event "FIDE World Rapid Chess Championship 2021"]
[White "Howell, David W L"]
[Black "Michalik, Peter"]
[WhiteFideId "410608"]
[BlackFideId "14907526"]
[WhiteElo "2624"]
[BlackElo "2515"]
[Result "1-0"]
[Round "06"]
[TimeControl "900+10"]
[Date "2021.12.27"]
[WhiteClock "0:01:07"]
[BlackClock "0:00:19"]

1. Nf3 {[%clk 0:15:00]}  d5 {[%clk 0:15:00]} 2. g3 {[%clk 0:15:32]}  Nf6 {[%clk 0:15:24]} 3. Bg2 {[%clk 0:15:32]}  e6 {[%clk 0:15:24]} 4. c4 {[%clk 0:15:32]}  Be7 {[%clk 0:15:24]} 5. d4 {[%clk 0:15:32]}  O-O {[%clk 0:15:24]} 6. Nc3 {[%clk 0:14:44]}  dxc4 {[%clk 0:15:39]} 7. Ne5 {[%clk 0:14:44]}  Nc6 {[%clk 0:15:39]} 8. Bxc6 {[%clk 0:14:44]}  bxc6 {[%clk 0:15:39]} 9. Nxc6 {[%clk 0:14:44]}  Qe8 {[%clk 0:15:39]} 10. Nxe7+ {[%clk 0:14:44]}  Qxe7 {[%clk 0:15:39]} 11. Qa4 {[%clk 0:14:44]}  a5 {[%clk 0:15:39]} 12. Qxc4 {[%clk 0:13:31]}  Ba6 {[%clk 0:15:50]} 13. Qc5 {[%clk 0:11:07]}  Qd7 {[%clk 0:14:15]} 14. f3 {[%clk 0:11:07]}  Rfd8 {[%clk 0:14:15]} 15. Be3 {[%clk 0:06:51]}  Nd5 {[%clk 0:11:30]} 16. Kf2 {[%clk 0:06:51]}  Rab8 {[%clk 0:11:26]} 17. b3 {[%clk 0:05:43]}  Rb6 {[%clk 0:07:21]} 18. Nxd5 {[%clk 0:03:22]}  exd5 {[%clk 0:07:17]} 19. Rac1 {[%clk 0:03:22]}  Re6 {[%clk 0:07:17]} 20. Qxc7 {[%clk 0:03:22]}  Rxe3 {[%clk 0:05:01]} 21. Kxe3 {[%clk 0:02:02]}  Re8+ {[%clk 0:05:01]} 22. Kd2 {[%clk 0:02:02]}  Rxe2+ {[%clk 0:05:01]} 23. Kd1 {[%clk 0:02:02]}  Qb5 {[%clk 0:02:47]} 24. Rc2 {[%clk 0:01:54]}  Qd3+ {[%clk 0:02:16]} 25. Kc1 {[%clk 0:00:51]}  h5 {[%clk 0:00:46]} 26. Rxe2 {[%clk 0:01:00]}  Qxe2 {[%clk 0:00:46]} 27. Qxa5 {[%clk 0:01:00]}  Bd3 {[%clk 0:00:46]} 28. Qd2 {[%clk 0:01:00]}  Qxf3 {[%clk 0:00:46]} 29. Re1 {[%clk 0:01:00]}  Be4 {[%clk 0:00:46]} 30. Kb2 {[%clk 0:01:00]}  Kh7 {[%clk 0:00:51]} 31. a4 {[%clk 0:00:33]}  Qf6 {[%clk 0:00:51]} 32. Rc1 {[%clk 0:00:33]}  Qa6 {[%clk 0:00:51]} 33. Ka3 {[%clk 0:00:33]}  Qd6+ {[%clk 0:00:51]} 34. b4 {[%clk 0:00:33]}  Bg6 {[%clk 0:00:51]} 35. Rc5 {[%clk 0:00:42]}  Qf6 {[%clk 0:00:39]} 36. b5 {[%clk 0:00:42]}  Qf1 {[%clk 0:00:39]} 37. Rc1 {[%clk 0:00:42]}  Qf3+ {[%clk 0:00:39]} 38. Kb4 {[%clk 0:00:42]}  f6 {[%clk 0:00:39]} 39. b6 {[%clk 0:01:07]}  Qe4 {[%clk 0:00:19]} 40. Re1 {[%clk 0:01:07]} 1-0


[Site "http://www.Chess.com"]

[Event "FIDE World Rapid Chess Championship 2021"]
[White "Adly, Ahmed"]
[Black "Gajewski, Grzegorz"]
[WhiteFideId "10601619"]
[BlackFideId "1116207"]
[WhiteElo "2597"]
[BlackElo "2496"]
[Result "1/2-1/2"]
[Round "06"]
[TimeControl "900+10"]
[Date "2021.12.27"]
[WhiteClock "0:00:44"]
[BlackClock "0:00:45"]

1. Nf3 {[%clk 0:15:00]}  d5 {[%clk 0:15:00]} 2. g3 {[%clk 0:15:25]}  c6 {[%clk 0:15:17]} 3. Bg2 {[%clk 0:15:25]}  Bg4 {[%clk 0:15:17]} 4. O-O {[%clk 0:15:25]}  Nd7 {[%clk 0:15:17]} 5. d3 {[%clk 0:15:25]}  Ngf6 {[%clk 0:15:17]} 6. Nbd2 {[%clk 0:15:25]}  e6 {[%clk 0:15:21]} 7. e4 {[%clk 0:15:15]}  Be7 {[%clk 0:15:21]} 8. h3 {[%clk 0:14:45]}  Bh5 {[%clk 0:14:11]} 9. g4 {[%clk 0:14:45]}  Bg6 {[%clk 0:14:11]} 10. Nh4 {[%clk 0:14:45]}  dxe4 {[%clk 0:13:59]} 11. Nxg6 {[%clk 0:13:25]}  hxg6 {[%clk 0:13:59]} 12. dxe4 {[%clk 0:12:13]}  Qc7 {[%clk 0:14:07]} 13. Qe2 {[%clk 0:12:14]}  O-O-O {[%clk 0:14:07]} 14. Nf3 {[%clk 0:12:15]}  Bd6 {[%clk 0:11:40]} 15. Rd1 {[%clk 0:11:54]}  Bf4 {[%clk 0:11:05]} 16. Bxf4 {[%clk 0:11:16]}  Qxf4 {[%clk 0:09:42]} 17. e5 {[%clk 0:11:16]}  Ne4 {[%clk 0:07:16]} 18. Rd4 {[%clk 0:10:26]}  Ndc5 {[%clk 0:07:16]} 19. Qe3 {[%clk 0:10:26]}  Qxe3 {[%clk 0:07:25]} 20. fxe3 {[%clk 0:06:29]}  a5 {[%clk 0:06:49]} 21. a3 {[%clk 0:06:37]}  a4 {[%clk 0:05:22]} 22. Rf1 {[%clk 0:04:41]}  f5 {[%clk 0:04:14]} 23. exf6 {[%clk 0:04:50]}  gxf6 {[%clk 0:04:14]} 24. Rfd1 {[%clk 0:04:44]}  e5 {[%clk 0:04:01]} 25. Rxd8+ {[%clk 0:04:44]}  Rxd8 {[%clk 0:04:01]} 26. Rxd8+ {[%clk 0:04:44]}  Kxd8 {[%clk 0:04:01]} 27. h4 {[%clk 0:03:09]}  Ke7 {[%clk 0:04:11]} 28. Kf1 {[%clk 0:03:09]}  Nd6 {[%clk 0:04:20]} 29. Nd2 {[%clk 0:02:05]}  f5 {[%clk 0:04:20]} 30. g5 {[%clk 0:02:05]}  e4 {[%clk 0:04:20]} 31. Kf2 {[%clk 0:02:05]}  Nf7 {[%clk 0:02:41]} 32. Bf1 {[%clk 0:01:47]}  Ne5 {[%clk 0:02:16]} 33. Be2 {[%clk 0:01:40]}  b5 {[%clk 0:02:16]} 34. Kg3 {[%clk 0:01:40]}  Ne6 {[%clk 0:02:16]} 35. Nb1 {[%clk 0:01:40]}  Kd6 {[%clk 0:02:16]} 36. b3 {[%clk 0:01:40]}  axb3 {[%clk 0:02:16]} 37. cxb3 {[%clk 0:01:07]}  Nd3 {[%clk 0:02:31]} 38. Nd2 {[%clk 0:01:07]}  c5 {[%clk 0:02:31]} 39. Nb1 {[%clk 0:01:07]}  Ke5 {[%clk 0:02:24]} 40. a4 {[%clk 0:00:29]}  c4 {[%clk 0:01:25]} 41. a5 {[%clk 0:00:29]}  cxb3 {[%clk 0:01:25]} 42. Bxd3 {[%clk 0:00:29]}  exd3 {[%clk 0:01:25]} 43. a6 {[%clk 0:00:29]}  Nc7 {[%clk 0:01:25]} 44. a7 {[%clk 0:00:29]}  b4 {[%clk 0:01:25]} 45. Kf3 {[%clk 0:00:29]}  Kd5 {[%clk 0:01:25]} 46. Nd2 {[%clk 0:01:01]}  b2 {[%clk 0:01:42]} 47. Kf4 {[%clk 0:01:01]}  Kc6 {[%clk 0:01:42]} 48. Ke5 {[%clk 0:01:01]}  Kb7 {[%clk 0:01:42]} 49. Kd4 {[%clk 0:01:01]}  Ne6+ {[%clk 0:00:34]} 50. Kxd3 {[%clk 0:00:53]}  f4 {[%clk 0:00:34]} 51. exf4 {[%clk 0:00:53]}  Nxf4+ {[%clk 0:00:34]} 52. Kc2 {[%clk 0:00:53]}  Kxa7 {[%clk 0:00:34]} 53. Kb3 {[%clk 0:00:29]}  Nd3 {[%clk 0:00:59]} 54. Kc2 {[%clk 0:00:29]}  Nf4 {[%clk 0:00:59]} 55. Kxb2 {[%clk 0:00:29]}  Kb6 {[%clk 0:00:59]} 56. Kb3 {[%clk 0:00:29]}  Kb5 {[%clk 0:00:59]} 57. Nf3 {[%clk 0:00:29]}  Kc5 {[%clk 0:00:59]} 58. Ne5 {[%clk 0:00:29]}  Kd5 {[%clk 0:00:45]} 59. Nxg6 {[%clk 0:00:44]}  Nxg6 {[%clk 0:00:45]} 60. h5 {[%clk 0:00:44]}  Nf4 {[%clk 0:00:45]} 61. Kxb4 {[%clk 0:00:44]}  Nxh5 {[%clk 0:00:45]} 62. g6 {[%clk 0:00:44]}  Ke6 {[%clk 0:00:45]} 63. g7 {[%clk 0:00:44]}  Nxg7 {[%clk 0:00:45]} 1/2-1/2


[Site "http://www.Chess.com"]

[Event "FIDE World Rapid Chess Championship 2021"]
[White "Timofeev, Artyom"]
[Black "Puranik, Abhimanyu"]
[WhiteFideId "4140419"]
[BlackFideId "5061245"]
[WhiteElo "2591"]
[BlackElo "2472"]
[Result "1-0"]
[Round "06"]
[TimeControl "900+10"]
[Date "2021.12.27"]
[WhiteClock "0:00:58"]
[BlackClock "0:00:19"]

1. d4 {[%clk 0:15:00]}  Nf6 {[%clk 0:15:14]} 2. Nf3 {[%clk 0:15:17]}  g6 {[%clk 0:15:14]} 3. Nbd2 {[%clk 0:15:17]}  c5 {[%clk 0:15:14]} 4. e3 {[%clk 0:15:17]}  Bg7 {[%clk 0:15:18]} 5. Be2 {[%clk 0:14:27]}  O-O {[%clk 0:14:44]} 6. O-O {[%clk 0:13:04]}  d6 {[%clk 0:14:44]} 7. c3 {[%clk 0:13:10]}  b6 {[%clk 0:13:10]} 8. a4 {[%clk 0:10:52]}  Nc6 {[%clk 0:10:29]} 9. Re1 {[%clk 0:10:26]}  cxd4 {[%clk 0:10:29]} 10. exd4 {[%clk 0:10:26]}  Bb7 {[%clk 0:09:34]} 11. Bf1 {[%clk 0:10:17]}  Qc7 {[%clk 0:09:34]} 12. Nc4 {[%clk 0:10:14]}  Nd5 {[%clk 0:08:35]} 13. Bg5 {[%clk 0:10:14]}  h6 {[%clk 0:08:44]} 14. Bd2 {[%clk 0:09:33]}  Rad8 {[%clk 0:08:16]} 15. Qb3 {[%clk 0:07:03]}  e5 {[%clk 0:06:27]} 16. Rad1 {[%clk 0:06:02]}  Kh7 {[%clk 0:05:59]} 17. Bc1 {[%clk 0:05:25]}  f5 {[%clk 0:05:59]} 18. g3 {[%clk 0:05:07]}  e4 {[%clk 0:05:10]} 19. Nh4 {[%clk 0:04:11]}  Rde8 {[%clk 0:05:10]} 20. Ng2 {[%clk 0:04:11]}  g5 {[%clk 0:04:13]} 21. Qc2 {[%clk 0:04:07]}  Bc8 {[%clk 0:04:13]} 22. h4 {[%clk 0:02:57]}  Qd8 {[%clk 0:04:17]} 23. hxg5 {[%clk 0:02:57]}  hxg5 {[%clk 0:04:17]} 24. Qe2 {[%clk 0:02:57]}  Kg6 {[%clk 0:04:17]} 25. f3 {[%clk 0:02:57]}  f4 {[%clk 0:04:15]} 26. fxe4 {[%clk 0:02:49]}  f3 {[%clk 0:04:15]} 27. Qf2 {[%clk 0:02:49]}  Nf6 {[%clk 0:01:37]} 28. Qxf3 {[%clk 0:03:05]}  Ng4 {[%clk 0:00:53]} 29. Qe2 {[%clk 0:03:05]}  Nf2 {[%clk 0:00:53]} 30. Nf4+ {[%clk 0:02:11]}  gxf4 {[%clk 0:01:06]} 31. Qxf2 {[%clk 0:02:11]}  f3 {[%clk 0:01:06]} 32. Bd3 {[%clk 0:02:11]}  Bh6 {[%clk 0:01:06]} 33. e5+ {[%clk 0:02:11]}  Bf5 {[%clk 0:01:06]} 34. Qxf3 {[%clk 0:02:02]}  Bxc1 {[%clk 0:00:31]} 35. Nxd6 {[%clk 0:02:02]}  Ne7 {[%clk 0:00:31]} 36. Rxc1 {[%clk 0:01:26]}  Bxd3 {[%clk 0:00:18]} 37. Qxd3+ {[%clk 0:01:26]}  Kg7 {[%clk 0:00:18]} 38. Nxe8+ {[%clk 0:01:26]}  Qxe8 {[%clk 0:00:18]} 39. Rf1 {[%clk 0:01:26]}  Rh8 {[%clk 0:00:18]} 40. Qf3 {[%clk 0:01:26]}  Rh6 {[%clk 0:00:18]} 41. Rce1 {[%clk 0:01:03]}  Rg6 {[%clk 0:00:25]} 42. e6 {[%clk 0:01:03]}  Qb8 {[%clk 0:00:25]} 43. Re5 {[%clk 0:01:03]}  Nc6 {[%clk 0:00:25]} 44. Qxc6 {[%clk 0:00:58]}  Rxg3+ {[%clk 0:00:19]} 45. Kf2 {[%clk 0:00:58]} 1-0


[Site "http://www.Chess.com"]

[Event "FIDE World Rapid Chess Championship 2021"]
[White "Bluebaum, Matthias"]
[Black "Sadhwani, Raunak"]
[WhiteFideId "24651516"]
[BlackFideId "35093487"]
[WhiteElo "2575"]
[BlackElo "2454"]
[Result "1/2-1/2"]
[Round "06"]
[TimeControl "900+10"]
[Date "2021.12.27"]
[WhiteClock "0:02:00"]
[BlackClock "0:01:12"]

1. d4 {[%clk 0:15:00]}  Nf6 {[%clk 0:15:13]} 2. Nf3 {[%clk 0:15:18]}  d5 {[%clk 0:15:13]} 3. e3 {[%clk 0:15:18]}  e6 {[%clk 0:15:13]} 4. Bd3 {[%clk 0:15:18]}  b6 {[%clk 0:15:13]} 5. O-O {[%clk 0:15:18]}  Bb7 {[%clk 0:15:13]} 6. b3 {[%clk 0:15:18]}  Bd6 {[%clk 0:15:13]} 7. c4 {[%clk 0:15:18]}  Nbd7 {[%clk 0:15:04]} 8. cxd5 {[%clk 0:15:57]}  exd5 {[%clk 0:15:04]} 9. Ba3 {[%clk 0:15:57]}  Bxa3 {[%clk 0:15:04]} 10. Nxa3 {[%clk 0:15:57]}  a6 {[%clk 0:15:04]} 11. Rc1 {[%clk 0:15:57]}  O-O {[%clk 0:15:04]} 12. Nb1 {[%clk 0:16:25]}  Re8 {[%clk 0:14:35]} 13. Nc3 {[%clk 0:16:25]}  c5 {[%clk 0:14:35]} 14. Qe2 {[%clk 0:16:25]}  Qe7 {[%clk 0:14:35]} 15. Rfd1 {[%clk 0:16:25]}  Nf8 {[%clk 0:14:24]} 16. Qb2 {[%clk 0:16:36]}  g6 {[%clk 0:13:52]} 17. Bf1 {[%clk 0:14:57]}  Ne6 {[%clk 0:13:07]} 18. g3 {[%clk 0:14:07]}  c4 {[%clk 0:12:49]} 19. Bg2 {[%clk 0:13:49]}  b5 {[%clk 0:12:01]} 20. b4 {[%clk 0:13:49]}  Nc7 {[%clk 0:11:54]} 21. Nd2 {[%clk 0:11:23]}  h5 {[%clk 0:11:18]} 22. Re1 {[%clk 0:11:23]}  Ne4 {[%clk 0:11:18]} 23. Rcd1 {[%clk 0:10:29]}  Nxc3 {[%clk 0:11:07]} 24. Qxc3 {[%clk 0:10:29]}  a5 {[%clk 0:11:07]} 25. bxa5 {[%clk 0:09:31]}  b4 {[%clk 0:10:55]} 26. Qc1 {[%clk 0:09:31]}  Nb5 {[%clk 0:10:55]} 27. e4 {[%clk 0:06:52]}  Nc3 {[%clk 0:06:55]} 28. exd5 {[%clk 0:06:36]}  Qd8 {[%clk 0:06:55]} 29. Nxc4 {[%clk 0:03:19]}  Rxe1+ {[%clk 0:06:20]} 30. Rxe1 {[%clk 0:03:19]}  Rc8 {[%clk 0:06:20]} 31. Qe3 {[%clk 0:03:28]}  Rxc4 {[%clk 0:01:57]} 32. d6 {[%clk 0:03:28]}  Bxg2 {[%clk 0:02:41]} 33. Qe8+ {[%clk 0:02:00]}  Qxe8 {[%clk 0:01:12]} 34. Rxe8+ {[%clk 0:02:00]}  Kg7 {[%clk 0:01:12]} 35. Kxg2 {[%clk 0:02:00]}  Rxd4 {[%clk 0:01:12]} 36. a6 {[%clk 0:02:00]}  Nb5 {[%clk 0:01:12]} 1/2-1/2


[Site "http://www.Chess.com"]

[Event "FIDE World Rapid Chess Championship 2021"]
[White "Costachi, Mihnea"]
[Black "Vakhidov, Jakhongir"]
[WhiteFideId "1217518"]
[BlackFideId "14201801"]
[WhiteElo "2443"]
[BlackElo "2566"]
[Result "1-0"]
[Round "06"]
[TimeControl "900+10"]
[Date "2021.12.27"]
[WhiteClock "0:00:23"]
[BlackClock "0:00:20"]

1. d4 {[%clk 0:15:00]}  Nf6 {[%clk 0:15:00]} 2. Nf3 {[%clk 0:15:00]}  g6 {[%clk 0:15:34]} 3. g3 {[%clk 0:15:32]}  Bg7 {[%clk 0:15:34]} 4. Bg2 {[%clk 0:15:32]}  O-O {[%clk 0:15:34]} 5. O-O {[%clk 0:15:32]}  d6 {[%clk 0:15:34]} 6. b3 {[%clk 0:15:32]}  e5 {[%clk 0:15:34]} 7. dxe5 {[%clk 0:15:32]}  dxe5 {[%clk 0:15:34]} 8. Ba3 {[%clk 0:15:32]}  Qxd1 {[%clk 0:15:34]} 9. Rxd1 {[%clk 0:15:32]}  Re8 {[%clk 0:15:34]} 10. c4 {[%clk 0:15:32]}  e4 {[%clk 0:16:11]} 11. Nd4 {[%clk 0:15:54]}  e3 {[%clk 0:16:11]} 12. f3 {[%clk 0:15:53]}  a6 {[%clk 0:15:14]} 13. Nc3 {[%clk 0:14:16]}  Nbd7 {[%clk 0:15:14]} 14. Rac1 {[%clk 0:14:05]}  c6 {[%clk 0:14:43]} 15. Bd6 {[%clk 0:12:28]}  h5 {[%clk 0:14:43]} 16. Na4 {[%clk 0:10:46]}  Nh7 {[%clk 0:13:20]} 17. c5 {[%clk 0:09:46]}  Nhf6 {[%clk 0:10:19]} 18. f4 {[%clk 0:07:48]}  Ne4 {[%clk 0:10:10]} 19. Bxe4 {[%clk 0:06:36]}  Rxe4 {[%clk 0:05:49]} 20. Nc2 {[%clk 0:06:36]}  a5 {[%clk 0:05:49]} 21. Rd3 {[%clk 0:06:36]}  Ra6 {[%clk 0:05:49]} 22. Rcd1 {[%clk 0:04:02]}  Nf6 {[%clk 0:06:10]} 23. Rxe3 {[%clk 0:04:02]}  Bf5 {[%clk 0:05:45]} 24. Rxe4 {[%clk 0:04:05]}  Nxe4 {[%clk 0:03:36]} 25. Ne3 {[%clk 0:02:58]}  Be6 {[%clk 0:03:36]} 26. Bc7 {[%clk 0:01:46]}  Ra8 {[%clk 0:03:40]} 27. Kg2 {[%clk 0:01:46]}  Bf8 {[%clk 0:03:40]} 28. Bb6 {[%clk 0:01:46]}  Re8 {[%clk 0:03:02]} 29. Nc4 {[%clk 0:01:46]}  Bh3+ {[%clk 0:03:02]} 30. Kg1 {[%clk 0:01:07]}  Nf6 {[%clk 0:03:02]} 31. Ne5 {[%clk 0:01:07]}  Nd5 {[%clk 0:03:02]} 32. e4 {[%clk 0:01:07]}  Nxb6 {[%clk 0:01:17]} 33. cxb6 {[%clk 0:00:58]}  Kg7 {[%clk 0:01:17]} 34. Kf2 {[%clk 0:00:58]}  f6 {[%clk 0:01:17]} 35. Nd3 {[%clk 0:00:58]}  Rxe4 {[%clk 0:00:58]} 36. Ndc5 {[%clk 0:00:44]}  Re7 {[%clk 0:00:58]} 37. Rd8 {[%clk 0:00:44]}  Bg4 {[%clk 0:00:58]} 38. Nc3 {[%clk 0:00:35]}  Rf7 {[%clk 0:00:39]} 39. N3a4 {[%clk 0:00:35]}  Re7 {[%clk 0:00:39]} 40. Rb8 {[%clk 0:00:35]}  Re2+ {[%clk 0:00:39]} 41. Kf1 {[%clk 0:00:35]}  Rc2 {[%clk 0:00:39]} 42. Rxb7+ {[%clk 0:00:35]}  Kh6 {[%clk 0:00:39]} 43. Rb8 {[%clk 0:00:08]}  Bxc5 {[%clk 0:00:36]} 44. Nxc5 {[%clk 0:00:08]}  Rxc5 {[%clk 0:00:36]} 45. b7 {[%clk 0:00:08]}  Rb5 {[%clk 0:00:20]} 46. Rh8+ {[%clk 0:00:23]}  Kg7 {[%clk 0:00:20]} 47. b8=Q {[%clk 0:00:23]} 1-0


[Site "http://www.Chess.com"]

[Event "FIDE World Rapid Chess Championship 2021"]
[White "Corrales Jimenez, Fidel"]
[Black "Bellahcene, Bilel"]
[WhiteFideId "3506690"]
[BlackFideId "696358"]
[WhiteElo "2561"]
[BlackElo "2397"]
[Result "1-0"]
[Round "06"]
[TimeControl "900+10"]
[Date "2021.12.27"]
[WhiteClock "0:07:35"]
[BlackClock "0:00:26"]

1. e4 {[%clk 0:15:06]}  c5 {[%clk 0:15:00]} 2. Nf3 {[%clk 0:15:06]}  d6 {[%clk 0:15:00]} 3. d4 {[%clk 0:15:06]}  cxd4 {[%clk 0:15:00]} 4. Nxd4 {[%clk 0:15:06]}  Nf6 {[%clk 0:15:00]} 5. Nc3 {[%clk 0:15:06]}  Nc6 {[%clk 0:15:00]} 6. Bg5 {[%clk 0:15:06]}  e6 {[%clk 0:15:00]} 7. Qd2 {[%clk 0:15:06]}  a6 {[%clk 0:15:00]} 8. O-O-O {[%clk 0:15:06]}  Bd7 {[%clk 0:15:00]} 9. Nxc6 {[%clk 0:15:37]}  Bxc6 {[%clk 0:16:16]} 10. Bd3 {[%clk 0:15:37]}  b5 {[%clk 0:16:05]} 11. f3 {[%clk 0:14:21]}  Be7 {[%clk 0:16:05]} 12. h4 {[%clk 0:14:21]}  h6 {[%clk 0:15:41]} 13. Be3 {[%clk 0:14:22]}  h5 {[%clk 0:14:47]} 14. Bg5 {[%clk 0:13:54]}  Qb6 {[%clk 0:11:44]} 15. Kb1 {[%clk 0:13:54]}  b4 {[%clk 0:11:40]} 16. Ne2 {[%clk 0:12:58]}  a5 {[%clk 0:11:40]} 17. Nf4 {[%clk 0:12:58]}  a4 {[%clk 0:11:43]} 18. Bc4 {[%clk 0:12:46]}  Bb5 {[%clk 0:06:46]} 19. Bxb5+ {[%clk 0:12:55]}  Qxb5 {[%clk 0:06:46]} 20. Rhe1 {[%clk 0:12:55]}  Rc8 {[%clk 0:06:50]} 21. Re3 {[%clk 0:12:06]}  Rc6 {[%clk 0:05:54]} 22. Rd3 {[%clk 0:11:57]}  Qc5 {[%clk 0:05:00]} 23. c3 {[%clk 0:11:57]}  bxc3 {[%clk 0:03:02]} 24. Rxc3 {[%clk 0:10:39]}  Qb5 {[%clk 0:03:02]} 25. Rdc1 {[%clk 0:10:47]}  Rxc3 {[%clk 0:01:32]} 26. Qxc3 {[%clk 0:10:47]}  Bd8 {[%clk 0:01:39]} 27. Qc6+ {[%clk 0:09:42]}  Qxc6 {[%clk 0:00:26]} 28. Rxc6 {[%clk 0:09:42]}  a3 {[%clk 0:00:26]} 29. Rxd6 {[%clk 0:09:42]}  Bc7 {[%clk 0:00:26]} 30. Ra6 {[%clk 0:07:35]} 1-0


[Site "http://www.Chess.com"]

[Event "FIDE World Rapid Chess Championship 2021"]
[White "Erigaisi, Arjun"]
[Black "Parligras, Mircea-Emilian"]
[WhiteFideId "35009192"]
[BlackFideId "1204297"]
[WhiteElo "2397"]
[BlackElo "2550"]
[Result "0-1"]
[Round "06"]
[TimeControl "900+10"]
[Date "2021.12.27"]
[WhiteClock "0:04:36"]
[BlackClock "0:05:42"]

1. Nf3 {[%clk 0:15:00]}  d5 {[%clk 0:15:00]} 2. c4 {[%clk 0:15:23]}  e6 {[%clk 0:15:23]} 3. g3 {[%clk 0:15:23]}  d4 {[%clk 0:15:23]} 4. Bg2 {[%clk 0:15:23]}  c5 {[%clk 0:15:23]} 5. d3 {[%clk 0:15:23]}  Nc6 {[%clk 0:15:23]} 6. O-O {[%clk 0:15:23]}  Nf6 {[%clk 0:15:23]} 7. e3 {[%clk 0:15:23]}  Bd6 {[%clk 0:15:23]} 8. exd4 {[%clk 0:15:23]}  cxd4 {[%clk 0:15:23]} 9. Na3 {[%clk 0:15:23]}  O-O {[%clk 0:15:50]} 10. Re1 {[%clk 0:15:44]}  h6 {[%clk 0:15:50]} 11. Nb5 {[%clk 0:15:44]}  Re8 {[%clk 0:15:36]} 12. Nxd6 {[%clk 0:15:24]}  Qxd6 {[%clk 0:13:54]} 13. Bd2 {[%clk 0:15:24]}  a5 {[%clk 0:13:54]} 14. Rc1 {[%clk 0:15:24]}  e5 {[%clk 0:13:54]} 15. Qb3 {[%clk 0:15:09]}  a4 {[%clk 0:13:57]} 16. Qb5 {[%clk 0:14:46]}  Bf5 {[%clk 0:13:34]} 17. c5 {[%clk 0:12:56]}  Qc7 {[%clk 0:13:05]} 18. Nh4 {[%clk 0:11:40]}  Bh7 {[%clk 0:12:36]} 19. Be4 {[%clk 0:11:40]}  Nxe4 {[%clk 0:12:39]} 20. dxe4 {[%clk 0:11:22]}  Qd7 {[%clk 0:12:39]} 21. Qd3 {[%clk 0:11:22]}  Qe6 {[%clk 0:12:39]} 22. Rc4 {[%clk 0:11:35]}  g5 {[%clk 0:10:37]} 23. Nf5 {[%clk 0:10:24]}  Bxf5 {[%clk 0:09:33]} 24. exf5 {[%clk 0:10:24]}  e4 {[%clk 0:09:33]} 25. fxe6 {[%clk 0:07:36]}  exd3 {[%clk 0:09:56]} 26. e7 {[%clk 0:07:36]}  f6 {[%clk 0:09:56]} 27. f4 {[%clk 0:07:36]}  Kf7 {[%clk 0:09:56]} 28. Kf2 {[%clk 0:07:36]}  Rxe7 {[%clk 0:09:56]} 29. Rxe7+ {[%clk 0:07:36]}  Kxe7 {[%clk 0:09:56]} 30. Kf3 {[%clk 0:07:36]}  f5 {[%clk 0:09:34]} 31. Rc1 {[%clk 0:07:58]}  g4+ {[%clk 0:09:34]} 32. Kf2 {[%clk 0:07:58]}  Ke6 {[%clk 0:09:38]} 33. Rd1 {[%clk 0:07:22]}  Kd5 {[%clk 0:09:38]} 34. Bc1 {[%clk 0:06:31]}  Ra5 {[%clk 0:09:06]} 35. h3 {[%clk 0:06:31]}  h5 {[%clk 0:08:25]} 36. hxg4 {[%clk 0:06:09]}  hxg4 {[%clk 0:08:25]} 37. Rxd3 {[%clk 0:06:09]}  Rxc5 {[%clk 0:08:25]} 38. Rd1 {[%clk 0:06:09]}  Rc2+ {[%clk 0:08:25]} 39. Kf1 {[%clk 0:06:08]}  b5 {[%clk 0:08:25]} 40. Re1 {[%clk 0:05:25]}  d3 {[%clk 0:07:51]} 41. Rd1 {[%clk 0:05:25]}  Nd4 {[%clk 0:06:56]} 42. a3 {[%clk 0:05:27]}  Ke4 {[%clk 0:06:56]} 43. Bd2 {[%clk 0:05:27]}  Rxb2 {[%clk 0:06:32]} 44. Be1 {[%clk 0:05:09]}  Nc2 {[%clk 0:06:32]} 45. Bf2 {[%clk 0:04:36]}  Ne3+ {[%clk 0:05:42]} 46. Bxe3 {[%clk 0:04:36]}  Kxe3 {[%clk 0:05:42]} 47. Re1+ {[%clk 0:04:36]}  Kf3 {[%clk 0:05:42]} 48. Rd1 {[%clk 0:04:36]}  d2 {[%clk 0:05:42]} 0-1


[Site "http://www.Chess.com"]